fUSD/lending_fUSD_20260417
["ID","MTS","AMOUNT","RATE_DAILY","PERIOD"]
[420625652,1776365353428,-300.0,9.165e-05,2]
[420625653,1776365353449,-440.00737357,9.166e-05,2]
[420625660,1776365432249,-150.0,8.948e-05,2]
[420625661,1776365432259,-582.5,9.094e-05,2]
[420625662,1776365432304,-325.91925649,9.094e-05,2]
[420625663,1776365432314,-54.08074351,9.166e-05,2]
[420625664,1776365432327,-549.36868616,9.166e-05,2]
[420625665,1776365432357,-748.55919676,9.166e-05,2]
[420625666,1776365432366,-159.138,9.166e-05,2]
[420625667,1776365432376,-179.55883432,9.166e-05,2]
[420625668,1776365432386,-500.0,9.233e-05,2]
[420625669,1776365432397,-500.0,9.233e-05,2]
[420625670,1776365432407,-500.0,9.233e-05,2]
[420625671,1776365432417,-500.0,9.233e-05,2]
[420625672,1776365432428,-1200.0,9.248e-05,2]
[420625673,1776365432441,-5069.52,9.249e-05,2]
[420625674,1776365432452,-300.0,9.252e-05,2]
[420625675,1776365432461,-54436.67855535,9.253e-05,2]
[420625676,1776365432474,-6689.15600441,9.253e-05,2]
[420625682,1776365438885,-7904.62537552,9.253e-05,2]
[420625685,1776365438904,-6704.1698651,9.253e-05,2]
[420625687,1776365438915,-499.50379673,9.253e-05,2]
[420625691,1776365438941,-2123.75116919,9.253e-05,2]
[420625693,1776365438952,-228086.5743259,9.253e-05,2]
[420625767,1776365440517,-1211.0,9.253e-05,2]
[420625768,1776365440529,-412.0,9.253e-05,2]
[420625769,1776365440570,-1690.5913692,9.253e-05,2]
[420625770,1776365440887,-1931.65386051,9.253e-05,2]
[420625771,1776365440899,-3989.49971055,9.253e-05,2]
[420625772,1776365441046,-24104.6103854,9.253e-05,2]
[420625773,1776365441106,-963.42602351,9.253e-05,2]
[420625807,1776365443658,-6767.32040939,9.253e-05,2]
[420625836,1776365446297,-538.21907567,9.253e-05,2]
[420625837,1776365446512,-4785.43111582,9.253e-05,2]
[420625838,1776365446525,-266.180693,9.253e-05,2]
[420625839,1776365446624,-5800.849,9.253e-05,2]
[420625840,1776365446637,-30942.17966475,9.253e-05,2]
[420625841,1776365446647,-150.0,9.26e-05,2]
[420625842,1776365446657,-150.0,9.3e-05,2]
[420625843,1776365446667,-550.60898188,9.333e-05,2]
[420625844,1776365446677,-500.0,9.333e-05,2]
[420625845,1776365446687,-500.0,9.333e-05,2]
[420625846,1776365446698,-500.0,9.333e-05,2]
[420625847,1776365446712,-500.0,9.333e-05,2]
[420625848,1776365446722,-500.0,9.333e-05,2]
[420625849,1776365446732,-150.0,9.342e-05,2]
[420625850,1776365446742,-150.0,9.342e-05,2]
[420625851,1776365446752,-150.0,9.342e-05,2]
[420625852,1776365446762,-150.0,9.342e-05,2]
[420625853,1776365446772,-150.0,9.351e-05,2]
[420625854,1776365446782,-23019.43884271,9.353e-05,2]
[420625855,1776365446795,-11999.99999747,9.353e-05,2]
[420625856,1776365446807,-6541.01841253,9.353e-05,2]
[420625857,1776365446843,-8213.35696041,9.353e-05,2]
[420625858,1776365446856,-8254.76554038,9.353e-05,2]
[420625859,1776365446874,-2369.01555245,9.353e-05,2]
[420625860,1776365446886,-108205.09322109,9.353e-05,2]
[420625861,1776365446914,-20100.22222643,9.353e-05,2]
[420625884,1776366254209,3691.03,8.272e-05,2]
[420625885,1776366283875,1500.0,8.272e-05,2]
[420625886,1776366339306,349.63,8.223e-05,2]
[420625887,1776366349867,155.92459702,0.000165,30]
[420625888,1776366359033,150.0,8.232e-05,2]
[420625889,1776366428786,150.0,8.243e-05,2]
[420625890,1776366495580,150.0,8.22e-05,2]
[420625891,1776366538129,167.04,8.219e-05,2]
[420625892,1776366559101,-300.0,8.309e-05,2]
[420625893,1776366559129,-300.0,8.309e-05,2]
[420625894,1776366559151,-1033.63501,8.309e-05,2]
[420625895,1776366563303,150.0,8.22e-05,2]
[420625896,1776366629592,150.0,8.22e-05,2]
[420625909,1776366631647,-166.36499,8.309e-05,2]
[420625910,1776366631656,-538.79639692,8.309e-05,2]
[420625911,1776366631668,-661.20360308,8.309e-05,2]
[420625912,1776366631677,-300.0,8.309e-05,2]
[420625913,1776366631686,-150.0,8.31e-05,2]
[420625914,1776366631696,-150.43891779,8.31e-05,2]
[420625915,1776366631706,-150.0,8.31e-05,2]
[420625916,1776366631715,-150.0,8.31e-05,2]
[420625917,1776366631725,-150.0,8.31e-05,2]
[420625918,1776366631735,-150.0,8.31e-05,2]
[420625919,1776366631744,-150.0,8.31e-05,2]
[420625920,1776366631753,-150.0,8.31e-05,2]
[420625921,1776366631763,-150.0,8.31e-05,2]
[420625922,1776366631772,-250.0,8.399e-05,2]
[420625923,1776366631782,-226.81,8.489e-05,3]
[420625924,1776366631791,-150.0,8.531e-05,2]
[420625925,1776366631801,-164.74,8.596e-05,2]
[420625926,1776366631811,-2000.0,8.623e-05,2]
[420625927,1776366631820,-200.0,8.741e-05,2]
[420625928,1776366631829,-150.0,8.755e-05,2]
[420625929,1776366631839,-500.0,8.767e-05,2]
[420625930,1776366631848,-150.0,8.771e-05,2]
[420625931,1776366631858,-420.0,8.795e-05,2]
[420625932,1776366631867,-488.14,8.838e-05,2]
[420625933,1776366631877,-261.06,8.84e-05,2]
[420625934,1776366631886,-150.0,9.011e-05,2]
[420625935,1776366631895,-164.74,9.069e-05,2]
[420625936,1776366631906,-150.0,9.104e-05,2]
[420625937,1776366631915,-500.0,9.133e-05,2]
[420625938,1776366631926,-502.19224822,9.133e-05,2]
[420625939,1776366631936,-500.0,9.133e-05,2]
[420625940,1776366631946,-500.0,9.133e-05,2]
[420625941,1776366631955,-420.0,9.139e-05,2]
[420625942,1776366631966,-934.0,9.139e-05,2]
[420625943,1776366631976,-1680.0,9.139e-05,2]
[420625944,1776366631985,-420.0,9.139e-05,2]
[420625949,1776366632505,-250.0,9.14e-05,2]
[420625950,1776366632520,-250.0,9.141e-05,2]
[420625951,1776366632530,-4553.22871814,9.15e-05,2]
[420625952,1776366633873,-1104.29309058,9.15e-05,2]
[420625953,1776366633885,-79326.96159128,9.15e-05,2]
[420625954,1776366633895,-4152.7093,9.152e-05,2]
[420625955,1776366633905,-11356.2649,9.152e-05,2]
[420625956,1776366633914,-175825.98110966,9.152e-05,2]
[420625957,1776366633941,-21967.62055404,9.152e-05,2]
[420625958,1776366633952,-1668.97568377,9.152e-05,2]
[420625959,1776366633974,-1804.06328209,9.152e-05,2]
[420625960,1776366633986,-1405.13503512,9.152e-05,2]
[420625961,1776366633998,-900.10494811,9.152e-05,2]
[420625962,1776366634567,-1060.14397087,9.152e-05,2]
[420625963,1776366634581,-4247.49169896,9.152e-05,2]
[420625966,1776366637810,-500.0,9.151e-05,2]
[420625967,1776366637821,-500.0,9.151e-05,2]
[420625968,1776366637831,-265.27340008,9.151e-05,2]
[420625969,1776366637842,-1286.10377256,9.152e-05,2]
[420625970,1776366637931,-284.14433268,9.152e-05,2]
[420625971,1776366637973,-355.615,9.152e-05,2]
[420625972,1776366638293,-1040.61822122,9.152e-05,2]
[420625976,1776366639788,-450.9,9.152e-05,2]
[420625977,1776366639844,-266.0,9.152e-05,2]
[420625978,1776366640275,-753.9999998,9.152e-05,2]
[420625979,1776366640327,-342.26322073,9.152e-05,2]
[420625980,1776366640340,-414.751446,9.152e-05,2]
[420626047,1776366645929,-292.8125,9.151e-05,2]
[420626048,1776366646157,-207.1875,9.151e-05,2]
[420626049,1776366646166,-357.79123177,9.151e-05,2]
[420626050,1776366646176,-236.58074482,9.151e-05,2]
[420626051,1776366646187,-500.0,9.151e-05,2]
[420626052,1776366646197,-500.0,9.151e-05,2]
[420626053,1776366646208,-495.46894829,9.151e-05,2]
[420626054,1776366646219,-278.82632067,9.151e-05,2]
[420626055,1776366646228,-515.47367815,9.151e-05,2]
[420626056,1776366646237,-501.11505511,9.151e-05,2]
[420626057,1776366646247,-500.0,9.151e-05,2]
[420626058,1776366646258,-155.59115507,9.151e-05,2]
[420626059,1776366646267,-500.0,9.151e-05,2]
[420626060,1776366646277,-507.03076701,9.151e-05,2]
[420626061,1776366646286,-41245.76290456,9.152e-05,2]
[420626062,1776366646298,-6541.01948825,9.152e-05,2]
[420626063,1776366646310,-86208.87083158,9.152e-05,2]
[420626064,1776366646319,-150.0,9.232e-05,2]
[420626065,1776366646328,-150.0,9.233e-05,2]
[420626066,1776366646337,-150.0,9.233e-05,2]
[420626067,1776366646348,-150.0,9.233e-05,2]
[420626068,1776366646358,-150.0,9.233e-05,2]
[420626069,1776366646368,-150.0,9.233e-05,2]
[420626070,1776366646377,-150.0,9.233e-05,2]
[420626071,1776366646388,-2242.411,9.25e-05,2]
[420626072,1776366646397,-169.472,9.25e-05,2]
[420626073,1776366646407,-500.0,9.25e-05,2]
[420626074,1776366646416,-158.5861218,9.285e-05,2]
[420626075,1776366646425,-7415.3092837,9.285e-05,2]
[420626076,1776366646435,-152.0,9.309e-05,7]
[420626077,1776366646444,-150.0,9.311e-05,2]
[420626078,1776366646454,-500.0,9.315e-05,2]
[420626079,1776366646464,-500.0,9.353e-05,2]
[420626080,1776366646474,-13074.0039425,9.495e-05,2]
[420626081,1776366646485,-23131.8834818,9.495e-05,2]
[420626082,1776366646644,-450.0,9.495e-05,2]
[420626523,1776366892356,150.0,0.00013512,30]
[420626524,1776366892713,150.0,0.00014337,30]
[420626525,1776366893101,150.0,0.00015161,30]
[420626527,1776367605169,-150.0,8.433e-05,2]
[420626528,1776367605190,-150.0,8.433e-05,2]
[420626529,1776367605212,-150.0,8.433e-05,2]
[420626530,1776367605235,-126.83858495,8.433e-05,2]
[420626531,1776367722768,150.0,0.00011233,120]
[420626532,1776367756071,-23.16141505,8.433e-05,2]
[420626533,1776367756093,-150.0,8.433e-05,2]
[420626534,1776367756114,-150.0,8.433e-05,2]
[420626535,1776367756135,-150.0,8.466e-05,2]
[420626536,1776367756156,-29.70380525,8.569e-05,2]
[420626570,1776367833135,-300.0,8.569e-05,2]
[420626571,1776367833145,-946.48,8.569e-05,2]
[420626572,1776367833156,-253.52,8.569e-05,2]
[420626573,1776367833168,-246.48,8.569e-05,2]
[420626574,1776367833268,-53.52,8.569e-05,2]
[420626575,1776367833278,-210.0,8.569e-05,2]
[420626576,1776367833287,-150.0,8.569e-05,2]
[420626577,1776367833298,-35041.02,8.57e-05,2]
[420626578,1776367833309,-732.5,8.672e-05,2]
[420626579,1776367833318,-150.0,8.72e-05,2]
[420626580,1776367833328,-2000.0,8.924e-05,2]
[420626581,1776367833337,-3617.90990963,9e-05,2]
[420626582,1776367833347,-150.0,9.018e-05,2]
[420626583,1776367833358,-1600.0,9.033e-05,2]
[420626584,1776367833368,-150.0,9.05e-05,2]
[420626585,1776367833377,-185958.6288,9.051e-05,2]
[420626586,1776367833387,-871.77598971,9.081e-05,2]
[420626587,1776367833397,-500.69201092,9.133e-05,2]
[420626588,1776367833406,-500.0,9.133e-05,2]
[420626589,1776367833418,-500.0,9.149e-05,2]
[420626590,1776367833427,-500.0,9.149e-05,2]
[420626591,1776367833437,-500.0,9.149e-05,2]
[420626592,1776367833446,-500.0,9.149e-05,2]
[420626593,1776367833455,-500.0,9.149e-05,2]
[420626594,1776367833465,-500.0,9.149e-05,2]
[420626595,1776367833474,-500.0,9.149e-05,2]
[420626596,1776367833483,-500.0,9.149e-05,2]
[420626597,1776367833492,-500.0,9.149e-05,2]
[420626598,1776367833501,-500.0,9.149e-05,2]
[420626599,1776367833510,-500.0,9.149e-05,2]
[420626600,1776367833519,-500.0,9.149e-05,2]
[420626601,1776367833528,-500.0,9.149e-05,2]
[420626602,1776367833538,-500.0,9.149e-05,2]
[420626603,1776367833547,-500.0,9.149e-05,2]
[420626604,1776367833556,-500.0,9.149e-05,2]
[420626605,1776367833565,-500.0,9.149e-05,2]
[420626606,1776367833574,-500.0,9.149e-05,2]
[420626607,1776367833583,-500.0,9.149e-05,2]
[420626608,1776367833593,-500.0,9.149e-05,2]
[420626609,1776367833602,-500.0,9.149e-05,2]
[420626610,1776367833611,-500.0,9.149e-05,2]
[420626611,1776367833620,-500.0,9.149e-05,2]
[420626612,1776367833630,-500.0,9.149e-05,2]
[420626613,1776367833639,-500.0,9.149e-05,2]
[420626614,1776367833648,-500.0,9.149e-05,2]
[420626615,1776367833658,-500.0,9.149e-05,2]
[420626616,1776367833667,-500.0,9.149e-05,2]
[420626617,1776367833677,-500.0,9.149e-05,2]
[420626618,1776367833686,-500.0,9.149e-05,2]
[420626619,1776367833696,-517.05086406,9.149e-05,2]
[420626620,1776367833705,-500.0,9.149e-05,2]
[420626621,1776367833715,-500.0,9.149e-05,2]
[420626622,1776367833724,-500.0,9.149e-05,2]
[420626623,1776367833733,-500.0,9.149e-05,2]
[420626624,1776367833742,-500.0,9.149e-05,2]
[420626625,1776367833752,-500.0,9.149e-05,2]
[420626626,1776367833761,-500.0,9.149e-05,2]
[420626627,1776367833771,-500.0,9.149e-05,2]
[420626628,1776367833780,-500.0,9.149e-05,2]
[420626629,1776367833789,-500.0,9.149e-05,2]
[420626630,1776367833798,-500.0,9.149e-05,2]
[420626631,1776367833808,-500.0,9.149e-05,2]
[420626632,1776367833817,-500.0,9.149e-05,2]
[420626633,1776367833826,-500.0,9.149e-05,2]
[420626634,1776367833835,-500.0,9.149e-05,2]
[420626635,1776367833845,-500.0,9.149e-05,2]
[420626636,1776367833854,-500.0,9.149e-05,2]
[420626637,1776367833863,-500.0,9.149e-05,2]
[420626638,1776367833872,-500.0,9.149e-05,2]
[420626639,1776367833881,-500.0,9.149e-05,2]
[420626640,1776367833891,-500.0,9.149e-05,2]
[420626641,1776367833900,-500.0,9.149e-05,2]
[420626642,1776367833909,-500.0,9.149e-05,2]
[420626643,1776367833919,-500.0,9.149e-05,2]
[420626644,1776367833929,-500.0,9.149e-05,2]
[420626645,1776367833939,-500.0,9.149e-05,2]
[420626646,1776367833948,-500.0,9.149e-05,2]
[420626647,1776367833957,-500.0,9.149e-05,2]
[420626648,1776367833967,-500.0,9.149e-05,2]
[420626649,1776367833976,-500.0,9.149e-05,2]
[420626650,1776367833986,-500.0,9.149e-05,2]
[420626651,1776367833996,-300.0,9.149e-05,2]
[420626652,1776367834005,-500.0,9.149e-05,2]
[420626653,1776367834016,-500.0,9.149e-05,2]
[420626654,1776367834026,-500.0,9.149e-05,2]
[420626655,1776367834035,-500.0,9.149e-05,2]
[420626656,1776367834045,-500.0,9.149e-05,2]
[420626657,1776367834055,-500.0,9.149e-05,2]
[420626658,1776367834064,-500.0,9.149e-05,2]
[420626659,1776367834074,-500.0,9.149e-05,2]
[420626660,1776367834083,-500.0,9.149e-05,2]
[420626661,1776367834093,-500.0,9.149e-05,2]
[420626662,1776367834102,-312.47,9.15e-05,2]
[420626663,1776367834112,-500.0,9.15e-05,2]
[420626664,1776367834121,-478.66091813,9.15e-05,2]
[420626665,1776367834131,-250.45386224,9.15e-05,2]
[420626666,1776367834140,-172942.77158501,9.151e-05,2]
[420626667,1776367834154,-408.91541095,9.151e-05,2]
[420626668,1776367834165,-160.3040822,9.223e-05,2]
[420626669,1776367834174,-12429.48942754,9.223e-05,2]
[420626670,1776367834209,-754.31571287,9.223e-05,2]
[420626671,1776367834221,-4657.5,9.223e-05,2]
[420626672,1776367834232,-1500.36,9.223e-05,2]
[420626676,1776367838137,-355.7428488,9.149e-05,2]
[420626677,1776367838196,-144.2571512,9.149e-05,2]
[420626678,1776367838206,-500.0,9.149e-05,2]
[420626679,1776367838216,-25048.31843699,9.223e-05,2]
[420626680,1776367838225,-20837.73269514,9.223e-05,2]
[420626681,1776367838236,-1170.75638054,9.223e-05,2]
[420626684,1776367839966,-1487.0,9.223e-05,2]
[420626685,1776367840301,-292.41499662,9.223e-05,2]
[420626686,1776367840473,-781.06101906,9.223e-05,2]
[420626687,1776367840486,-674.66537723,9.223e-05,2]
[420626688,1776367840498,-7721.94853633,9.223e-05,2]
[420626707,1776367842846,-743.33980056,9.223e-05,2]
[420626708,1776367842858,-2343.68669856,9.223e-05,2]
[420626710,1776367842906,-22618.77733936,9.223e-05,2]
[420626711,1776367842916,-4219.1178303,9.223e-05,2]
[420626712,1776367842927,-913.3576086,9.223e-05,2]
[420626713,1776367842936,-150.0,9.318e-05,2]
[420626714,1776367842946,-152.0,9.362e-05,7]
[420626715,1776367842956,-500.0,9.373e-05,2]
[420626716,1776367842966,-500.0,9.373e-05,2]
[420626717,1776367842976,-500.0,9.373e-05,2]
[420626718,1776367842985,-761.91605224,9.387e-05,2]
[420626719,1776367842994,-151.0,9.395e-05,2]
[420626720,1776367843004,-196.605404,9.395e-05,2]
[420626721,1776367843018,-151.0,9.395e-05,2]
[420626722,1776367843028,-151.0,9.395e-05,2]
[420626723,1776367843038,-312.47,9.424e-05,2]
[420626724,1776367843048,-420.0,9.426e-05,2]
[420626725,1776367843058,-1680.0,9.426e-05,2]
[420626726,1776367843067,-376.0,9.426e-05,2]
[420626727,1776367843076,-578.20924308,9.48e-05,2]
[420626728,1776367843086,-646.65982734,9.48e-05,2]
[420626729,1776367843095,-1280.88388878,9.48e-05,2]
[420626730,1776367843106,-500.0,9.48e-05,2]
[420626731,1776367843115,-187.78006525,9.48e-05,2]
[420626732,1776367843124,-8565.75555911,9.48e-05,2]
[420626733,1776367843135,-12435.76591044,9.48e-05,2]
[420626734,1776367843144,-200.0,9.48e-05,2]
[420626735,1776367843154,-151.0,9.48e-05,2]
[420626736,1776367843164,-351.59905131,9.48e-05,2]
[420626737,1776367843175,-200.0,9.48e-05,2]
[420626738,1776367843184,-151.0,9.48e-05,2]
[420626739,1776367843194,-500.0,9.48e-05,2]
[420626740,1776367843204,-500.0,9.48e-05,2]
[420626741,1776367843213,-500.0,9.48e-05,2]
[420626742,1776367843222,-500.0,9.48e-05,2]
[420626743,1776367843232,-10000.0,9.48e-05,2]
[420626744,1776367843241,-500.0,9.48e-05,2]
[420626745,1776367843252,-10000.0,9.48e-05,2]
[420626746,1776367843262,-500.0,9.48e-05,2]
[420626747,1776367843271,-10000.0,9.48e-05,2]
[420626748,1776367843280,-160.0,9.48e-05,2]
[420626749,1776367843290,-500.0,9.48e-05,2]
[420626750,1776367843299,-250.0,9.48e-05,2]
[420626751,1776367843308,-743.50770149,9.48e-05,2]
[420626752,1776367843318,-174.61919141,9.48e-05,2]
[420626753,1776367843327,-187.78006525,9.48e-05,2]
[420626754,1776367843337,-187.78006525,9.48e-05,2]
[420626755,1776367843347,-211.40802048,9.48e-05,2]
[420626756,1776367843358,-219.23011724,9.48e-05,2]
[420626757,1776367843368,-227.34163157,9.48e-05,2]
[420626758,1776367843378,-621.78829552,9.48e-05,2]
[420626759,1776367843388,-152.0,9.48e-05,2]
[420626760,1776367843397,-152.0,9.48e-05,2]
[420626761,1776367843407,-152.0,9.48e-05,2]
[420626762,1776367843418,-187.78006525,9.48e-05,2]
[420626763,1776367843432,-500.0,9.495e-05,2]
[420626764,1776367843442,-150.0,9.5e-05,2]
[420626765,1776367843452,-805.0226946,9.52e-05,2]
[420626766,1776367843462,-8882.6885148,9.535e-05,2]
[420626767,1776367843472,-500.0,9.535e-05,2]
[420626768,1776367843482,-151.0,9.535e-05,2]
[420626769,1776367843492,-164.74,9.542e-05,2]
[420626770,1776367843504,-150.0,9.56e-05,2]
[420626771,1776367843514,-9211.34798985,9.59e-05,2]
[420626772,1776367843525,-500.0,9.59e-05,2]
[420626773,1776367843534,-151.0,9.59e-05,2]
[420626774,1776367843544,-1952.135499,9.645e-05,2]
[420626775,1776367843554,-500.0,9.645e-05,2]
[420626776,1776367843564,-151.0,9.645e-05,2]
[420626777,1776367843573,-500.93469977,9.681e-05,2]
[420626778,1776367843585,-312.47,9.698e-05,2]
[420626779,1776367843596,-500.0,9.7e-05,2]
[420626780,1776367843605,-151.0,9.7e-05,2]
[420626781,1776367843614,-381.0,9.7e-05,2]
[420626782,1776367843624,-378.0,9.709e-05,2]
[420626783,1776367843634,-150.0,9.717e-05,2]
[420626784,1776367843643,-342.0,9.753e-05,2]
[420626785,1776367843652,-351.0,9.753e-05,2]
[420626786,1776367843661,-1181.0,9.753e-05,2]
[420626787,1776367843671,-701.0,9.753e-05,2]
[420626788,1776367843681,-747.0,9.753e-05,2]
[420626789,1776367843690,-539.0,9.753e-05,2]
[420626790,1776367843700,-341.0,9.753e-05,2]
[420626791,1776367843709,-710.0,9.753e-05,2]
[420626792,1776367843719,-500.0,9.755e-05,2]
[420626793,1776367843728,-151.0,9.755e-05,2]
[420626794,1776367843738,-381.0,9.761e-05,2]
[420626795,1776367843748,-160.0,9.769e-05,2]
[420626796,1776367843757,-195.73474906,9.772e-05,2]
[420626797,1776367843767,-381.0,9.789e-05,2]
[420626798,1776367843776,-500.0,9.81e-05,2]
[420626799,1776367843786,-151.0,9.81e-05,2]
[420626800,1776367843795,-319.99121928,9.841e-05,2]
[420626801,1776367843805,-378.0,9.842e-05,2]
[420626802,1776367843817,-248.0,9.857e-05,2]
[420626803,1776367843828,-500.0,9.865e-05,2]
[420626804,1776367843838,-151.0,9.865e-05,2]
[420626805,1776367843848,-1116.0,9.881e-05,2]
[420626806,1776367843858,-381.0,9.906e-05,2]
[420626807,1776367843867,-499.99999901,9.91e-05,2]
[420626808,1776367843877,-500.0,9.92e-05,2]
[420626809,1776367843887,-1000.0,9.953e-05,2]
[420626810,1776367843896,-150.0,9.953e-05,2]
[420626811,1776367843906,-255.0,9.955e-05,2]
[420626812,1776367843915,-312.47,9.972e-05,2]
[420626813,1776367843927,-500.0,9.975e-05,2]
[420626814,1776367843937,-165.197,0.0001,2]
[420626815,1776367843947,-1057.05317022,0.0001,2]
[420626816,1776367843956,-3208.22657772,0.0001,3]
[420626817,1776367843966,-895.67459001,0.0001,2]
[420626818,1776367843976,-2757.45734095,0.0001,2]
[420626819,1776367843986,-16198.45909822,0.0001,2]
[420626820,1776367843995,-348.94553568,0.0001,2]
[420626821,1776367844006,-216.27229313,0.0001,2]
[420626822,1776367844015,-500.0,0.0001,2]
[420626823,1776367844025,-500.0,0.0001,2]
[420626824,1776367844035,-151.0,0.0001,2]
[420626825,1776367844045,-151.0,0.0001,2]
[420626826,1776367844056,-500.0,0.0001,2]
[420626827,1776367844066,-151.0,0.0001,2]
[420626828,1776367844076,-500.0,0.0001,2]
[420626829,1776367844086,-151.0,0.0001,2]
[420626830,1776367844096,-513.52598709,0.0001,2]
[420626831,1776367844106,-151.0,0.0001,2]
[420626832,1776367844115,-151.0,0.0001,2]
[420626833,1776367844125,-151.0,0.0001,2]
[420626834,1776367844135,-151.0,0.0001,2]
[420626835,1776367844146,-151.0,0.0001,2]
[420626836,1776367844157,-151.0,0.0001,2]
[420626837,1776367844167,-151.0,0.0001,2]
[420626838,1776367844184,-208.87508322,0.0001,2]
[420626839,1776367844193,-500.0,0.0001,2]
[420626840,1776367844203,-500.0,0.0001,2]
[420626841,1776367844212,-500.0,0.0001,2]
[420626842,1776367844222,-500.0,0.0001,2]
[420626843,1776367844232,-534.67829723,0.0001,2]
[420626844,1776367844242,-1243.57659104,0.0001,2]
[420626845,1776367844252,-151.0,0.0001,2]
[420626846,1776367844262,-720.12319,0.0001,2]
[420626847,1776367844271,-720.1232,0.0001,2]
[420626848,1776367844292,-720.1232,0.0001,2]
[420626849,1776367844303,-720.1232,0.0001,2]
[420626850,1776367844313,-720.1232,0.0001,2]
[420626851,1776367844322,-720.1232,0.0001,2]
[420626852,1776367844332,-164.74,0.00010015,2]
[420626853,1776367844342,-1328.27659266,0.00010028,2]
[420626854,1776367844351,-194.72792766,0.00010028,2]
[420626855,1776367844361,-1314.22082583,0.00010028,2]
[420626856,1776367844371,-200.0,0.00010028,2]
[420626857,1776367844381,-156.587,0.00010028,2]
[420626858,1776367844391,-181.08010149,0.00010028,2]
[420626859,1776367844401,-194.72792766,0.00010028,2]
[420626860,1776367844411,-644.79446246,0.00010028,2]
[420626861,1776367844421,-194.72792766,0.00010028,2]
[420626862,1776367844431,-300.0,0.0001003,2]
[420626863,1776367844441,-500.0,0.0001003,2]
[420626864,1776367844451,-2000.0,0.0001004,2]
[420626865,1776367844461,-2270.886,0.00010103,2]
[420626866,1776367844470,-166.047,0.00010103,2]
[420626867,1776367844480,-1600.0,0.00010162,2]
[420626868,1776367844490,-15951.95820065,0.0001019,2]
[420626869,1776367844500,-622.0,0.00010197,2]
[420626870,1776367844509,-3528.0,0.00010197,2]
[420626871,1776367844519,-312.5,0.00010246,2]
[420626872,1776367844528,-150.0,0.00010253,2]
[420626873,1776367844538,-2123.01175941,0.0001027,2]
[420626874,1776367844547,-500.0,0.00010273,2]
[420626875,1776367844556,-634.57042281,0.00010273,2]
[420626876,1776367844566,-500.0,0.00010273,2]
[420626877,1776367844576,-150.0,0.00010286,2]
[420626878,1776367844587,-240.024,0.00010286,2]
[420626879,1776367844596,-250.0,0.00010286,2]
[420626880,1776367844606,-163.699,0.00010286,2]
[420626881,1776367844616,-156.347,0.00010286,2]
[420626882,1776367844625,-193.817,0.00010286,2]
[420626883,1776367844636,-166.341,0.00010286,2]
[420626884,1776367844645,-250.0,0.00010286,2]
[420626885,1776367844655,-215.217,0.00010286,2]
[420626886,1776367844664,-182.0,0.00010286,2]
[420626887,1776367844675,-241.039,0.00010286,2]
[420626888,1776367844685,-21236.1183397,0.000103,2]
[420626900,1776367846701,-989.46262736,0.000103,2]
[420626901,1776367846876,-764.86434579,0.000103,2]
[420626902,1776367846903,-1034.09274746,0.000103,2]
[420626903,1776367846932,-559.32068236,0.00010079,2]
[420626904,1776367846944,-487.67931764,0.00010079,2]
[420626905,1776367846954,-8592.84914402,0.000103,2]
[420626906,1776367846965,-3101.36321665,0.000103,2]
[420626907,1776367846976,-18380.83223651,0.000103,2]
[420626908,1776367846990,-4307.74967549,0.000103,2]
[420626909,1776367847004,-1030.1308482,0.000103,2]
[420626910,1776367847016,-1772.92596407,0.000103,2]
[420626911,1776367847028,-3254.57378964,0.000103,2]
[420626912,1776367847044,-5063.48737109,0.000103,2]
[420626913,1776367847579,-2174.67929847,0.000103,2]
[420626914,1776367847590,-21631.70037449,0.000103,2]
[420626915,1776367847601,-16278.35587084,0.000103,2]
[420626916,1776367847612,-3466.0095172,0.000103,2]
[420626917,1776367848863,-3.59439014,0.000103,2]
[420626918,1776367848881,-3478.7,0.000103,2]
[420626919,1776367848895,-144989.72,0.000103,2]
[420626920,1776367848907,-605.81441792,0.000103,2]
[420626921,1776367848922,-625.97460234,0.000103,2]